[Event "Late-Titled-Tuesday-Blitz-August-29-2023"]
[Site "Chess.com"]
[Date "2023.08.29"]
[Round "4"]
[White "Msb2"]
[Black "Meri-Arabidze"]
[Result "1-0"]
[WhiteElo "3010"]
[BlackElo "2603"]
[TimeControl "180+1"]
[EndTime "14:39:22 PDT"]
[Termination "Msb2 won by resignation"]

1. d4 {[%clk 0:03:00.9]} 1... d5 {[%clk 0:02:56.1]} 2. c4 {[%clk 0:03:00.9]}
2... dxc4 {[%clk 0:02:56.8]} 3. e4 {[%clk 0:03:01.3]} 3... e5 {[%clk 0:02:56.2]}
4. Nf3 {[%clk 0:03:01.8]} 4... exd4 {[%clk 0:02:56.4]} 5. Bxc4 {[%clk
0:03:02.5]} 5... Nc6 {[%clk 0:02:55.2]} 6. O-O {[%clk 0:03:03.1]} 6... Nf6
{[%clk 0:02:52.6]} 7. e5 {[%clk 0:03:01.6]} 7... Nd5 {[%clk 0:02:52.6]} 8. Nxd4
{[%clk 0:02:37.5]} 8... Nxd4 {[%clk 0:02:29.9]} 9. Qxd4 {[%clk 0:02:38.4]} 9...
Be6 {[%clk 0:02:30]} 10. Rd1 {[%clk 0:02:33.4]} 10... c6 {[%clk 0:02:27.8]} 11.
Bb3 {[%clk 0:02:20.9]} 11... Be7 {[%clk 0:02:24.4]} 12. Nc3 {[%clk 0:02:18.1]}
12... Nxc3 {[%clk 0:02:19]} 13. Qxc3 {[%clk 0:02:19]} 13... Qc8 {[%clk 0:02:18]}
14. Bc2 {[%clk 0:02:17.7]} 14... O-O {[%clk 0:02:14.8]} 15. Qd3 {[%clk
0:02:13.2]} 15... g6 {[%clk 0:02:14.1]} 16. Bh6 {[%clk 0:02:13.4]} 16... Rd8
{[%clk 0:02:13.8]} 17. Qe3 {[%clk 0:02:14]} 17... Bf5 {[%clk 0:01:58.6]} 18.
Rxd8+ {[%clk 0:02:11.4]} 18... Bxd8 {[%clk 0:01:59.5]} 19. Bb3 {[%clk
0:02:08.5]} 19... Be6 {[%clk 0:01:59.3]} 20. Rd1 {[%clk 0:02:02.8]} 20... Be7
{[%clk 0:01:57.8]} 21. h3 {[%clk 0:01:52.6]} 21... Bf8 {[%clk 0:01:56.8]} 22.
Bxf8 {[%clk 0:01:48.8]} 22... Kxf8 {[%clk 0:01:53.9]} 23. Qh6+ {[%clk
0:01:34.8]} 23... Kg8 {[%clk 0:01:53.4]} 24. Rd4 {[%clk 0:01:34.8]} 24... Qf8
{[%clk 0:01:02.7]} 25. Qd2 {[%clk 0:01:29]} 25... Bxb3 {[%clk 0:00:58.1]} 26.
axb3 {[%clk 0:01:29.9]} 26... Re8 {[%clk 0:00:58.3]} 27. f4 {[%clk 0:01:28.6]}
27... f6 {[%clk 0:00:51.5]} 28. Rd7 {[%clk 0:00:58.7]} 28... fxe5 {[%clk
0:00:49.3]} 29. Rxb7 {[%clk 0:00:59.2]} 29... Qxf4 {[%clk 0:00:42.2]} 30. Qe1
{[%clk 0:00:40]} 30... e4 {[%clk 0:00:34.2]} 31. Qc3 {[%clk 0:00:38.9]} 31...
Qe5 {[%clk 0:00:30]} 32. Qxc6 {[%clk 0:00:35.4]} 32... Qd4+ {[%clk 0:00:16.2]}
33. Kh1 {[%clk 0:00:35.4]} 33... Rf8 {[%clk 0:00:08.5]} 34. Qe6+ {[%clk
0:00:05]} 34... Kh8 {[%clk 0:00:08]} 35. Rf7 {[%clk 0:00:04.8]} 35... Rxf7
{[%clk 0:00:04.8]} 36. Qxf7 {[%clk 0:00:05.7]} 36... Qd1+ {[%clk 0:00:04.6]} 37.
Kh2 {[%clk 0:00:06.3]} 37... Qd6+ {[%clk 0:00:05.3]} 38. Kg1 {[%clk 0:00:06.9]}
38... Qd4+ {[%clk 0:00:03.7]} 39. Kf1 {[%clk 0:00:05.5]} 39... Qd1+ {[%clk
0:00:03.8]} 40. Kf2 {[%clk 0:00:05]} 40... Qd2+ {[%clk 0:00:04.5]} 41. Kg3
{[%clk 0:00:05]} 41... Qe3+ {[%clk 0:00:04.5]} 42. Kh2 {[%clk 0:00:04.9]} 42...
Qc5 {[%clk 0:00:02.2]} 43. Qf6+ {[%clk 0:00:05.4]} 43... Kg8 {[%clk 0:00:02.3]}
44. Qe6+ {[%clk 0:00:06.3]} 44... Kg7 {[%clk 0:00:02.5]} 45. Qxe4 {[%clk
0:00:06.6]} 45... Qd6+ {[%clk 0:00:02.6]} 46. Kg1 {[%clk 0:00:06.6]} 46... Qd1+
{[%clk 0:00:02.4]} 47. Kf2 {[%clk 0:00:07.3]} 47... Qxb3 {[%clk 0:00:03]} 48.
Qd4+ {[%clk 0:00:07.2]} 48... Kf7 {[%clk 0:00:02.9]} 49. Qxa7+ {[%clk
0:00:07.3]} 49... Kf6 {[%clk 0:00:02.9]} 50. Qd4+ {[%clk 0:00:07.5]} 50... Kf7
{[%clk 0:00:03.4]} 51. Qf4+ {[%clk 0:00:07.9]} 51... Kg7 {[%clk 0:00:03.6]} 52.
Qe5+ {[%clk 0:00:08.2]} 52... Kf7 {[%clk 0:00:03.7]} 53. Qc7+ {[%clk 0:00:07.9]}
53... Kf6 {[%clk 0:00:03.8]} 54. Qc3+ {[%clk 0:00:08.1]} 54... Qxc3 {[%clk
0:00:04.3]} 55. bxc3 {[%clk 0:00:09]} 55... Ke5 {[%clk 0:00:05.2]} 56. Ke3
{[%clk 0:00:09.6]} 56... Kd5 {[%clk 0:00:05.8]} 57. Kf4 {[%clk 0:00:09.8]} 57...
Kc4 {[%clk 0:00:06]} 58. Kg5 {[%clk 0:00:10.3]} 58... Kxc3 {[%clk 0:00:06.9]}
59. Kh6 {[%clk 0:00:10.9]} 59... Kd4 {[%clk 0:00:06.1]} 60. Kxh7 {[%clk
0:00:11.5]} 60... g5 {[%clk 0:00:06.6]} 61. Kg6 {[%clk 0:00:11.9]} 61... g4
{[%clk 0:00:05]} 62. hxg4 {[%clk 0:00:11.9]} 1-0

[Event "Late-Titled-Tuesday-Blitz-August-29-2023"]
[Site "Chess.com"]
[Date "2023.08.29"]
[Round "4"]
[White "artin10862"]
[Black "Jumbo"]
[Result "1-0"]
[WhiteElo "2844"]
[BlackElo "2941"]
[TimeControl "180+1"]
[EndTime "14:39:23 PDT"]
[Termination "artin10862 won by checkmate"]

1. Nf3 {[%clk 0:02:52]} 1... Nf6 {[%clk 0:02:59.9]} 2. c4 {[%clk 0:02:51.8]}
2... e6 {[%clk 0:03:00.1]} 3. Nc3 {[%clk 0:02:52.2]} 3... d5 {[%clk 0:03:00.2]}
4. d4 {[%clk 0:02:52.9]} 4... Nbd7 {[%clk 0:03:00.2]} 5. cxd5 {[%clk 0:02:47.7]}
5... exd5 {[%clk 0:03:01.1]} 6. Bg5 {[%clk 0:02:48.2]} 6... c6 {[%clk
0:02:59.5]} 7. Qc2 {[%clk 0:02:48]} 7... Be7 {[%clk 0:02:59.8]} 8. e3 {[%clk
0:02:47.6]} 8... Nf8 {[%clk 0:02:59.2]} 9. Bd3 {[%clk 0:02:28.2]} 9... Ne6
{[%clk 0:02:54.2]} 10. Bh4 {[%clk 0:02:20.1]} 10... g6 {[%clk 0:02:52.4]} 11. h3
{[%clk 0:02:16.2]} 11... a5 {[%clk 0:02:47.2]} 12. Ne5 {[%clk 0:02:11.7]} 12...
Nd7 {[%clk 0:02:34.3]} 13. Bg3 {[%clk 0:02:01.7]} 13... Nxe5 {[%clk 0:02:22.5]}
14. Bxe5 {[%clk 0:02:02.6]} 14... Bf6 {[%clk 0:02:22.5]} 15. Bh2 {[%clk
0:02:01.1]} 15... O-O {[%clk 0:02:20.8]} 16. Na4 {[%clk 0:01:58.5]} 16... Re8
{[%clk 0:02:18.6]} 17. O-O {[%clk 0:01:57.5]} 17... Ng5 {[%clk 0:02:14.7]} 18.
Qb3 {[%clk 0:01:55]} 18... b5 {[%clk 0:01:41.7]} 19. Nc5 {[%clk 0:01:43.3]}
19... a4 {[%clk 0:01:40.6]} 20. Qb4 {[%clk 0:01:39.9]} 20... Ne6 {[%clk
0:01:16.1]} 21. Rac1 {[%clk 0:01:34.1]} 21... Be7 {[%clk 0:01:06.4]} 22. Nxe6
{[%clk 0:01:32.1]} 22... Bxe6 {[%clk 0:01:07.3]} 23. Qd2 {[%clk 0:01:27.8]}
23... Qb6 {[%clk 0:01:04.8]} 24. Rc2 {[%clk 0:01:26.9]} 24... b4 {[%clk
0:00:58.6]} 25. Rfc1 {[%clk 0:01:26.5]} 25... Rec8 {[%clk 0:00:59.2]} 26. Qd1
{[%clk 0:01:23.9]} 26... f6 {[%clk 0:00:40.9]} 27. Bf4 {[%clk 0:01:15.4]} 27...
a3 {[%clk 0:00:32]} 28. b3 {[%clk 0:01:12.7]} 28... c5 {[%clk 0:00:32.1]} 29.
dxc5 {[%clk 0:01:08.1]} 29... Rxc5 {[%clk 0:00:33]} 30. Rxc5 {[%clk 0:01:05.4]}
30... Bxc5 {[%clk 0:00:33.9]} 31. Qc2 {[%clk 0:01:05.7]} 31... Rc8 {[%clk
0:00:13.5]} 32. Qe2 {[%clk 0:00:31.3]} 32... Kf7 {[%clk 0:00:09]} 33. Ba6 {[%clk
0:00:28.2]} 33... Ra8 {[%clk 0:00:09]} 34. Bd3 {[%clk 0:00:25.7]} 34... Rc8
{[%clk 0:00:08.4]} 35. Ba6 {[%clk 0:00:25.4]} 35... Ra8 {[%clk 0:00:09]} 36. Bb5
{[%clk 0:00:21.7]} 36... Rc8 {[%clk 0:00:06.8]} 37. Rc2 {[%clk 0:00:19.4]} 37...
Be7 {[%clk 0:00:02.9]} 38. Bd3 {[%clk 0:00:17.3]} 38... Rxc2 {[%clk 0:00:02.4]}
39. Qxc2 {[%clk 0:00:18.2]} 39... Qc5 {[%clk 0:00:02.7]} 40. Kf1 {[%clk
0:00:13.6]} 40... Qxc2 {[%clk 0:00:01.6]} 41. Bxc2 {[%clk 0:00:14.5]} 41... Bc5
{[%clk 0:00:02.3]} 42. Ke2 {[%clk 0:00:13.6]} 42... Ke7 {[%clk 0:00:03]} 43. Bh6
{[%clk 0:00:10.3]} 43... d4 {[%clk 0:00:03]} 44. e4 {[%clk 0:00:07.1]} 44... Kd6
{[%clk 0:00:02.5]} 45. Bc1 {[%clk 0:00:05.9]} 45... Ke7 {[%clk 0:00:01.4]} 46.
Bd3 {[%clk 0:00:06.4]} 46... Bd7 {[%clk 0:00:02.1]} 47. Bc4 {[%clk 0:00:06.5]}
47... Bc6 {[%clk 0:00:02.3]} 48. Kd3 {[%clk 0:00:07.1]} 48... Kd6 {[%clk
0:00:02.5]} 49. Bf4+ {[%clk 0:00:06.9]} 49... Ke7 {[%clk 0:00:03]} 50. f3 {[%clk
0:00:07.5]} 50... Bd7 {[%clk 0:00:02.8]} 51. Bg3 {[%clk 0:00:06.9]} 51... Bc6
{[%clk 0:00:02.2]} 52. Bf2 {[%clk 0:00:07.2]} 52... Kd6 {[%clk 0:00:01.7]} 53.
Bg8 {[%clk 0:00:06.1]} 53... Ke5 {[%clk 0:00:01.6]} 54. Bg3# {[%clk 0:00:05.6]}
1-0

[Event "Late-Titled-Tuesday-Blitz-August-29-2023"]
[Site "Chess.com"]
[Date "2023.08.29"]
[Round "4"]
[White "Zhigalko_Sergei"]
[Black "carokannlover213"]
[Result "1/2-1/2"]
[WhiteElo "2927"]
[BlackElo "2710"]
[TimeControl "180+1"]
[EndTime "14:39:29 PDT"]
[Termination "Game drawn - insufficient material"]

1. e4 {[%clk 0:03:00.9]} 1... e5 {[%clk 0:03:00.5]} 2. Nf3 {[%clk 0:03:01.3]}
2... Nf6 {[%clk 0:03:00.4]} 3. Bc4 {[%clk 0:03:01.9]} 3... Nxe4 {[%clk
0:02:58.7]} 4. d3 {[%clk 0:03:01.5]} 4... Nf6 {[%clk 0:02:57.2]} 5. Nxe5 {[%clk
0:02:57.9]} 5... d5 {[%clk 0:02:57.4]} 6. Bb3 {[%clk 0:02:58]} 6... Bd6 {[%clk
0:02:57.7]} 7. d4 {[%clk 0:02:55]} 7... O-O {[%clk 0:02:58]} 8. O-O {[%clk
0:02:55]} 8... c5 {[%clk 0:02:57.9]} 9. c3 {[%clk 0:02:54.2]} 9... Nc6 {[%clk
0:02:58.4]} 10. Nxc6 {[%clk 0:02:53.2]} 10... bxc6 {[%clk 0:02:59.3]} 11. dxc5
{[%clk 0:02:53.7]} 11... Bxc5 {[%clk 0:02:59.8]} 12. Bf4 {[%clk 0:02:47.4]}
12... Ba6 {[%clk 0:02:53.7]} 13. Re1 {[%clk 0:02:46]} 13... Ne4 {[%clk
0:02:54.3]} 14. Be3 {[%clk 0:02:38.2]} 14... Qb6 {[%clk 0:02:51.4]} 15. Bxc5
{[%clk 0:02:28.2]} 15... Nxc5 {[%clk 0:02:39.4]} 16. Nd2 {[%clk 0:01:51.9]}
16... Nd3 {[%clk 0:02:35.8]} 17. Re3 {[%clk 0:01:52]} 17... Rae8 {[%clk
0:02:24.8]} 18. Qf3 {[%clk 0:01:38]} 18... Rxe3 {[%clk 0:01:39]} 19. Qxe3 {[%clk
0:01:33.4]} 19... Qxe3 {[%clk 0:01:35.1]} 20. fxe3 {[%clk 0:01:34.3]} 20... Nxb2
{[%clk 0:01:34.8]} 21. e4 {[%clk 0:01:35]} 21... Nc4 {[%clk 0:01:26.5]} 22. Bxc4
{[%clk 0:01:29.8]} 22... Bxc4 {[%clk 0:01:17.3]} 23. Nxc4 {[%clk 0:01:28.7]}
23... dxc4 {[%clk 0:01:18.2]} 24. Rb1 {[%clk 0:01:26.9]} 24... Re8 {[%clk
0:01:15.4]} 25. Rb4 {[%clk 0:01:23.2]} 25... g6 {[%clk 0:01:11.1]} 26. Rxc4
{[%clk 0:01:22.6]} 26... Re5 {[%clk 0:01:04]} 27. Kf2 {[%clk 0:01:14.3]} 27...
Ra5 {[%clk 0:00:46.2]} 28. a4 {[%clk 0:01:13.4]} 28... Kf8 {[%clk 0:00:46.4]}
29. Ke3 {[%clk 0:01:01.9]} 29... Ke7 {[%clk 0:00:46]} 30. Rxc6 {[%clk
0:00:24.7]} 30... Rxa4 {[%clk 0:00:45.2]} 31. h4 {[%clk 0:00:25]} 31... h6
{[%clk 0:00:43.9]} 32. h5 {[%clk 0:00:21.5]} 32... gxh5 {[%clk 0:00:39.5]} 33.
Rxh6 {[%clk 0:00:22.4]} 33... Ra2 {[%clk 0:00:39.2]} 34. Rxh5 {[%clk 0:00:17.5]}
34... Rxg2 {[%clk 0:00:38.2]} 35. Ra5 {[%clk 0:00:17.5]} 35... Rc2 {[%clk
0:00:26]} 36. Rxa7+ {[%clk 0:00:16.3]} 36... Ke6 {[%clk 0:00:26.4]} 37. Ra6+
{[%clk 0:00:14.7]} 37... Ke5 {[%clk 0:00:25.9]} 38. Ra5+ {[%clk 0:00:14.3]}
38... Ke6 {[%clk 0:00:26.5]} 39. Ra6+ {[%clk 0:00:12.1]} 39... Ke5 {[%clk
0:00:26.2]} 40. Kd3 {[%clk 0:00:13]} 40... Rc1 {[%clk 0:00:26.2]} 41. Ra5+
{[%clk 0:00:13.3]} 41... Ke6 {[%clk 0:00:26.8]} 42. Kd2 {[%clk 0:00:06.3]} 42...
Rh1 {[%clk 0:00:26.4]} 43. c4 {[%clk 0:00:05.7]} 43... Rh3 {[%clk 0:00:26]} 44.
Rf5 {[%clk 0:00:03.5]} 44... f6 {[%clk 0:00:21.4]} 45. c5 {[%clk 0:00:03.6]}
45... Ra3 {[%clk 0:00:20.3]} 46. Ke2 {[%clk 0:00:02.5]} 46... Rc3 {[%clk
0:00:18.6]} 47. Kd2 {[%clk 0:00:02.2]} 47... Ra3 {[%clk 0:00:19.2]} 48. Ke2
{[%clk 0:00:02.4]} 48... Rc3 {[%clk 0:00:18.2]} 49. Kf2 {[%clk 0:00:02.9]} 49...
Ra3 {[%clk 0:00:17]} 50. Rf3 {[%clk 0:00:03.1]} 50... Ra2+ {[%clk 0:00:16.3]}
51. Ke3 {[%clk 0:00:03.7]} 51... Rc2 {[%clk 0:00:17.2]} 52. Kd4 {[%clk
0:00:03.8]} 52... Rc1 {[%clk 0:00:13.6]} 53. Rc3 {[%clk 0:00:03.3]} 53... Rd1+
{[%clk 0:00:13.9]} 54. Ke3 {[%clk 0:00:03.7]} 54... Kd7 {[%clk 0:00:10.6]} 55.
Kf4 {[%clk 0:00:02.5]} 55... Rf1+ {[%clk 0:00:10.3]} 56. Rf3 {[%clk 0:00:01.5]}
56... Rc1 {[%clk 0:00:10.4]} 57. Kf5 {[%clk 0:00:01.7]} 57... Ke7 {[%clk
0:00:10.1]} 58. e5 {[%clk 0:00:01.4]} 58... Rxc5 {[%clk 0:00:10.3]} 59. Re3
{[%clk 0:00:01.9]} 59... Kf7 {[%clk 0:00:09.1]} 60. Re4 {[%clk 0:00:02.3]} 60...
Ke7 {[%clk 0:00:08.9]} 61. Re3 {[%clk 0:00:02.2]} 61... fxe5 {[%clk 0:00:09.1]}
62. Rxe5+ {[%clk 0:00:03.1]} 62... Kd6 {[%clk 0:00:10]} 63. Rxc5 {[%clk
0:00:03.2]} 63... Kxc5 {[%clk 0:00:10.9]} 1/2-1/2

[Event "Late-Titled-Tuesday-Blitz-August-29-2023"]
[Site "Chess.com"]
[Date "2023.08.29"]
[Round "4"]
[White "SchmakAttack"]
[Black "XiaoKangZhong"]
[Result "1-0"]
[WhiteElo "2780"]
[BlackElo "2546"]
[TimeControl "180+1"]
[EndTime "14:39:29 PDT"]
[Termination "SchmakAttack won by resignation"]

1. c4 {[%clk 0:03:00.4]} 1... Nf6 {[%clk 0:02:32.4]} 2. g3 {[%clk 0:02:58.7]}
2... e6 {[%clk 0:02:29.5]} 3. Bg2 {[%clk 0:02:58.4]} 3... d5 {[%clk 0:02:28.1]}
4. Nf3 {[%clk 0:02:58.4]} 4... dxc4 {[%clk 0:02:26.1]} 5. Na3 {[%clk 0:02:43.9]}
5... Be7 {[%clk 0:02:17.6]} 6. Nxc4 {[%clk 0:02:42.5]} 6... O-O {[%clk
0:02:17.6]} 7. O-O {[%clk 0:02:39.4]} 7... c5 {[%clk 0:02:15.7]} 8. d4 {[%clk
0:02:30.4]} 8... Nc6 {[%clk 0:02:08]} 9. dxc5 {[%clk 0:02:27.1]} 9... Bxc5
{[%clk 0:01:56.7]} 10. Bf4 {[%clk 0:02:26.3]} 10... Nd5 {[%clk 0:01:46.7]} 11.
Bd2 {[%clk 0:02:25.3]} 11... b5 {[%clk 0:01:37.8]} 12. Nce5 {[%clk 0:02:21.7]}
12... Nxe5 {[%clk 0:01:32.8]} 13. Nxe5 {[%clk 0:02:22.6]} 13... Bb7 {[%clk
0:01:32.5]} 14. Rc1 {[%clk 0:02:18.2]} 14... Bd6 {[%clk 0:01:29.9]} 15. Nc6
{[%clk 0:02:02]} 15... Qb6 {[%clk 0:01:17.8]} 16. Na5 {[%clk 0:01:43.8]} 16...
Be5 {[%clk 0:00:40.4]} 17. Nxb7 {[%clk 0:01:36.4]} 17... Qxb7 {[%clk 0:00:39.6]}
18. Qb3 {[%clk 0:01:36.5]} 18... Rfd8 {[%clk 0:00:34.3]} 19. Ba5 {[%clk
0:01:29.6]} 19... Rd7 {[%clk 0:00:33.6]} 20. Rfd1 {[%clk 0:01:24.1]} 20... a6
{[%clk 0:00:30.2]} 21. f4 {[%clk 0:01:04.2]} 21... Bc7 {[%clk 0:00:24]} 22. Bxc7
{[%clk 0:00:48.1]} 22... Rxc7 {[%clk 0:00:24.9]} 23. Rxc7 {[%clk 0:00:47.2]}
23... Qxc7 {[%clk 0:00:23.2]} 24. Bxd5 {[%clk 0:00:47.2]} 24... exd5 {[%clk
0:00:24.1]} 25. Qxd5 {[%clk 0:00:47.3]} 25... Re8 {[%clk 0:00:21.1]} 26. Kf1
{[%clk 0:00:27.3]} 26... Qc2 {[%clk 0:00:15.6]} 27. Rd2 {[%clk 0:00:26]} 27...
Qb1+ {[%clk 0:00:12.5]} 28. Kg2 {[%clk 0:00:25.7]} 28... h6 {[%clk 0:00:11.6]}
29. a3 {[%clk 0:00:19.4]} 29... g6 {[%clk 0:00:07.6]} 30. Qd3 {[%clk 0:00:18.2]}
30... Qc1 {[%clk 0:00:06.3]} 31. Rc2 {[%clk 0:00:16.7]} 31... Qe1 {[%clk
0:00:04.3]} 32. h4 {[%clk 0:00:14.8]} 32... h5 {[%clk 0:00:04]} 33. Rd2 {[%clk
0:00:14.6]} 33... Qc1 {[%clk 0:00:03.7]} 34. Qc2 {[%clk 0:00:08.1]} 34... Qe1
{[%clk 0:00:03.7]} 35. Qd3 {[%clk 0:00:06.2]} 35... Qc1 {[%clk 0:00:03.8]} 36.
Rc2 {[%clk 0:00:05.8]} 36... Qe1 {[%clk 0:00:04.1]} 37. b4 {[%clk 0:00:06.3]}
37... Re6 {[%clk 0:00:03.3]} 38. Rb2 {[%clk 0:00:04.6]} 38... Kh7 {[%clk
0:00:02.8]} 39. Rc2 {[%clk 0:00:04.1]} 39... Qa1 {[%clk 0:00:02.7]} 40. f5
{[%clk 0:00:02.5]} 40... gxf5 {[%clk 0:00:02.4]} 41. Qxf5+ {[%clk 0:00:03.4]}
41... Kg7 {[%clk 0:00:03]} 42. Qxh5 {[%clk 0:00:02.7]} 42... Qd4 {[%clk
0:00:02.6]} 43. Qg5+ {[%clk 0:00:03]} 43... Rg6 {[%clk 0:00:03.1]} 44. Qf5
{[%clk 0:00:02.3]} 44... Rf6 {[%clk 0:00:03.2]} 45. Qg5+ {[%clk 0:00:02.5]}
45... Rg6 {[%clk 0:00:04]} 46. Qf5 {[%clk 0:00:03]} 46... Rf6 {[%clk 0:00:04.5]}
47. Qd3 {[%clk 0:00:03.3]} 47... Qe5 {[%clk 0:00:04.6]} 48. e4 {[%clk
0:00:03.2]} 48... Rg6 {[%clk 0:00:04.9]} 49. Rf2 {[%clk 0:00:03.3]} 49... Qe6
{[%clk 0:00:05.1]} 50. Qe3 {[%clk 0:00:03.7]} 50... Qe5 {[%clk 0:00:05.5]} 51.
Qf4 {[%clk 0:00:03.7]} 51... Qd4 {[%clk 0:00:06]} 52. Qxf7+ {[%clk 0:00:03.5]}
52... Kh6 {[%clk 0:00:06.8]} 53. Qf8+ {[%clk 0:00:04.1]} 53... Kh5 {[%clk
0:00:06.3]} 54. Rf5+ {[%clk 0:00:03.9]} 54... Kg4 {[%clk 0:00:05.9]} 55. Rf4+
{[%clk 0:00:04.3]} 55... Kh5 {[%clk 0:00:06.6]} 56. Qf5+ {[%clk 0:00:04.5]}
56... Kh6 {[%clk 0:00:07.2]} 57. h5 {[%clk 0:00:02.7]} 57... Rg5 {[%clk
0:00:06.6]} 58. Qf6+ {[%clk 0:00:02.4]} 58... Qxf6 {[%clk 0:00:07.1]} 59. Rxf6+
{[%clk 0:00:03.3]} 59... Kxh5 {[%clk 0:00:07.3]} 60. Rxa6 {[%clk 0:00:04.1]}
60... Kg4 {[%clk 0:00:07.3]} 61. Ra5 {[%clk 0:00:04.2]} 61... Re5 {[%clk
0:00:07.9]} 62. a4 {[%clk 0:00:04.2]} 62... Rxe4 {[%clk 0:00:08.4]} 63. Rxb5
{[%clk 0:00:04.8]} 63... Re5 {[%clk 0:00:08.5]} 64. Kf2 {[%clk 0:00:04]} 64...
Re4 {[%clk 0:00:08.7]} 65. a5 {[%clk 0:00:04.1]} 65... Rc4 {[%clk 0:00:08.9]}
66. a6 {[%clk 0:00:04.5]} 66... Rc2+ {[%clk 0:00:09.6]} 67. Ke3 {[%clk
0:00:05.1]} 67... Rc3+ {[%clk 0:00:10]} 68. Kd4 {[%clk 0:00:05.4]} 68... Rc6
{[%clk 0:00:10.4]} 69. Ra5 {[%clk 0:00:05.2]} 69... Kxg3 {[%clk 0:00:10.8]} 70.
a7 {[%clk 0:00:05.8]} 70... Rd6+ {[%clk 0:00:11]} 71. Kc5 {[%clk 0:00:06]} 71...
Rh6 {[%clk 0:00:11.7]} 72. a8=Q {[%clk 0:00:06.5]} 72... Rh5+ {[%clk 0:00:12.3]}
73. Qd5 {[%clk 0:00:06.8]} 1-0